[Event "Reykjavik Open 2024"]
[Site "Reykjavik"]
[Date "2024.03.16"]
[Round "3.9"]
[White "Tania, Sachdev"]
[Black "Seemann, Jakub"]
[Result "0-1"]
[ECO "A65"]
[WhiteElo "2393"]
[BlackElo "2451"]
[Annotator "TA"]
[PlyCount "68"]
[EventDate "2024.03.12"]
[EventCountry "ISL"]
[SourceTitle "playchess.com"]
[Source "ChessBase"]
[SourceQuality "1"]
[TimeControl "40/5400+30:1800+30"]

{[%evp 17,68,24,40,25,25,18,15,21,22,22,23,22,22,30,39,24,32,23,22,6,53,50,60,57,55,73,56,9,29,22,23,22,13,24,25,17,73,82,81,90,76,0,36,-175,-157,-273,-263,-577,-529,-1412,-1349,-1331,-401]} 1. d4 {[%emt 0:00:06]} Nf6 {[%emt 0:00:06]} 2. c4 {[%emt 0:00:03]} g6 {[%emt 0:00:57]} 3. Nc3 {[%emt 0:00:04]} Bg7 {[%emt 0:00:06]} 4. e4 {[%emt 0:00:03]} d6 {[%emt 0:00:06]} 5. f3 {[%emt 0:00:04]} O-O {[%emt 0:00:05]} 6. Nge2 {[%emt 0:00:09]} c5 {[%emt 0:00:12]} 7. d5 {[%emt 0:00:02]} e6 {[%emt 0:00:53]} 8. Ng3 {[%emt 0:00:04]} exd5 {[%emt 0:00:49]} 9. cxd5 {[%emt 0:00:04]} h5 {[%emt 0:00:28]} 10. Bg5 {[%emt 0:00:12]} a6 {[%emt 0:03:31]} 11. a4 {[%emt 0:00:10]} Qe8 {[%emt 0:00:18]} 12. Qd2 {[%emt 0:04:39] Die Stellung ist ausgeglichen.} Nh7 $1 {[%emt 0:03:46]} 13. Bh6 {[%emt 0:00:25]} h4 {[%emt 0:00:15]} 14. Bxg7 {[%emt 0:00:06]} Kxg7 {[%emt 0:00:09]} 15. Nge2 {[%emt 0:00:11]} Nd7 {[%emt 0:09:04]} 16. Nf4 {[%emt 0:00:37]} Ne5 {[%emt 0:00:39]} 17. Be2 {[%emt 0:00:27]} Rb8 {[%emt 0:14:11]} 18. O-O {[%emt 0:07:40]} b5 {[%emt 0:01:51]} (18... Bd7 $11) 19. axb5 $14 {[%emt 0:02:19]} axb5 {[%emt 0:00:02] [#]} 20. b4 $1 {[%emt 0:02:10]} cxb4 {[%emt 0:08:34]} 21. Na2 {[%emt 0:00:09]} b3 {[%emt 0:01:51]} 22. Nb4 {[%emt 0:00:35]} (22. Nc1 $14 {ist überlegen.}) 22... Bd7 {[%emt 0:09:51][%cal Oh4h3]} (22... Nc4 23. Bxc4 bxc4 24. Nc6 $16) 23. Qb2 {[%emt 0:10:25][%cal Oa1a6]} Qd8 {[%emt 0:04:22]} 24. Nfd3 {[%emt 0:07:40]} f6 {[%emt 0:06:37]} 25. Qxb3 {[%emt 0:01:34]} Qb6+ {[%emt 0:00:27]} 26. Nf2 {[%emt 0:16:37]} h3 {[%emt 0:01:59]} (26... Ra8 $11) 27. f4 $16 {[%emt 0:20:07][%csl LRe5,LRh3] Ra6 ist eine echte Drohung.} Nc4 {[%emt 0:01:37]} 28. Ra6 {[%emt 0:03:36]} (28. gxh3 Nd2 29. Qg3 Nxf1 (29... Nxe4 $2 30. Qg2 $19) 30. Rxf1 Kh8 $17) 28... Qc5 {[%emt 0:03:36]} 29. Rc1 {[%emt 0:04:31] Zielt auf Nc6 ab.} (29. gxh3 Nd2 30. Qa3 Rbc8 $17 (30... Nxe4 31. Ra7 $17) (30... Nxf1 31. Kxf1 Rbc8 32. h4 $15)) 29... Rfe8 {[%emt 0:14:23]} 30. Nc6 $2 {[%emt 0:17:44] [#] Ein Fehler, der zur Niederlage führt.} (30. gxh3 Rxe4 31. Nbd3 Qe3 $17 (31... Qxd5 32. Bf3 $11)) (30. Bxc4 $14 {behält die Oberhand.} Rxe4 31. Bf1 (31. Nc6 $2 Rxc4 32. Rxc4 Re8 $19) 31... Qxb4 32. Qxb4 Rxb4 33. Rc7) 30... Rxe4 $1 $19 {[%emt 0:00:12]} (30... Bxc6 31. Rxc6 Qa7 32. Qf3 $16 (32. Qxh3 Rxe4 $11) (32. Bxc4 bxc4 33. Qxc4 Qe3 $16)) 31. Bxc4 {[%emt 0:01:31]} (31. Nxb8 $17 {ist wohl besser.} Rxe2 32. Qg3) 31... Rbe8 {[%emt 0:00:31]} 32. gxh3 $2 {[%emt 0:01:48]} (32. Qxb5 {wird mattgesetzt.} Re1+ (32... Rxf4 $2 {geht unter.} 33. Qxc5 dxc5 34. Ra7 $18) 33. Bf1 Qxb5) (32. Ra7 {ist eine bessere Chance.} bxc4 33. Rxd7+ Kh8 34. Qc3 (34. Qxh3 $2 {ist ein Selbstmatt.} Re1+ 35. Rxe1 Rxe1#)) 32... bxc4 {[%emt 0:00:42] Schwarz steht klar auf Gewinn.} 33. Qg3 {[%emt 0:00:37]} Re1+ {[%emt 0:00:19]} 34. Rxe1 {[%emt 0:00:04]} Rxe1+ {[%emt 0:00:03] Gewichteter Fehlerwert: Weiß=0.56/Schwarz=0.10 (sehr präzise) .  Verlustzug:     	Weiß=1     	---        Fehler:       	Weiß=3     	Schwarz=2     Ungenau:       	Weiß=2     	---        OK:         	Weiß=13    	Schwarz=9     Bester:       	---       	Schwarz=1     Stark:        	---       	Schwarz=2} 0-1

[Event "Reykjavik Open 2024"]
[Site "Reykjavik"]
[Date "2024.03.16"]
[Round "3.10"]
[White "Steingrimsson, Hedinn"]
[Black "Thorfinnsson, Bragi"]
[Result "1-0"]
[ECO "D35"]
[WhiteElo "2477"]
[BlackElo "2397"]
[Annotator "TA"]
[PlyCount "81"]
[EventDate "2024.03.12"]
[EventCountry "ISL"]
[SourceTitle "playchess.com"]
[Source "ChessBase"]
[SourceQuality "1"]
[TimeControl "40/5400+30:1800+30"]

{[%evp 12,81,23,20,42,34,37,43,42,31,38,38,56,41,52,54,52,32,42,53,58,55,57,43,93,68,74,79,91,81,83,63,71,63,90,92,92,79,144,121,205,207,203,208,203,202,198,201,187,166,161,168,178,159,153,154,190,194,206,196,217,220,209,218,305,267,434,434,389,415,480,462]} 1. d4 {[%emt 0:00:02]} d5 {[%emt 0:00:49]} 2. c4 {[%emt 0:00:04]} e6 {[%emt 0:00:06]} 3. Nc3 {[%emt 0:00:05]} Nf6 {[%emt 0:03:12]} 4. cxd5 {[%emt 0:01:07]} exd5 {[%emt 0:01:14]} 5. Bg5 {[%emt 0:00:04]} c6 {[%emt 0:02:41]} 6. e3 {[%emt 0:02:33]} Bd6 {[%emt 0:01:21]} 7. Bd3 {[%emt 0:00:29]} Be6 {[%emt 0:02:29]} 8. Nge2 {[%emt 0:10:19]} h6 {[%emt 0:03:05]} 9. Bf4 {[%emt 0:01:11]} O-O {[%emt 0:03:52] White is slightly better.} 10. h3 {[%emt 0:04:37]} a5 {[%emt 0:02:21]} 11. O-O {[%emt 0:01:59]} Na6 {[%emt 0:03:14]} 12. Rc1 {[%emt 0:03:18]} Re8 {[%emt 0:05:22]} 13. Bxd6 {[%emt 0:05:01]} Qxd6 {[%emt 0:00:08]} 14. Ng3 {[%emt 0:00:14]} b5 {[%emt 0:24:01]} 15. a4 {[%emt 0:02:32]} bxa4 {[%emt 0:01:52]} 16. Bxa6 {[%emt 0:09:45]} Rxa6 {[%emt 0:00:13]} 17. Nxa4 {[%emt 0:00:03]} Nd7 {[%emt 0:02:21]} ({Black should try} 17... Ne4 $14) 18. Rc3 $16 {[%emt 0:02:35]} Rb8 {[%emt 0:00:43]} 19. Qc2 {[%emt 0:11:48]} Rb4 {[%emt 0:03:24]} 20. Ra1 {[%emt 0:06:01]} g6 {[%emt 0:02:06]} 21. Nf1 {[%emt 0:01:57]} Bf5 {[%emt 0:02:14]} 22. Qd1 {[%emt 0:00:45]} Qb8 {[%emt 0:06:28] White now steadily converts the win.} 23. Ng3 {[%emt 0:09:37][%cal Bf1g3,Bg3e2,Be2f4][%mdl 32] Strongly threatening Nxf5.} Be6 {[%emt 0:00:54]} 24. Ne2 {[%emt 0:01:12]} Qd8 {[%emt 0:09:28]} ({Black should play} 24... Bf5) 25. Nf4 {[%emt 0:02:07]} Qe7 {[%emt 0:00:56]} (25... Bf5 $16) 26. Qe2 $18 {[%emt 0:02:04]} Rc4 {[%emt 0:00:35]} 27. Rxc4 {[%emt 0:05:19]} dxc4 {[%emt 0:00:08]} 28. Nxe6 {[%emt 0:00:21]} Qxe6 {[%emt 0:00:04] [#]} 29. Rc1 $1 {[%emt 0:00:04]} h5 {[%emt 0:01:42]} 30. Qxc4 {[%emt 0:10:25]} Qxc4 {[%emt 0:00:09]} 31. Rxc4 {[%emt 0:00:01][%mdl 4096] Endgame. KRN-KRN} Kf8 {[%emt 0:00:07]} 32. e4 {[%emt 0:04:01]} Ke7 {[%emt 0:00:34]} 33. f3 {[%emt 0:02:55]} f6 {[%emt 0:00:30]} 34. Kf2 {[%emt 0:00:13]} Kd6 {[%emt 0:00:14]} 35. Rc3 {[%emt 0:00:45]} Ra7 {[%emt 0:01:23]} 36. Rb3 {[%emt 0:00:26]} g5 {[%emt 0:00:58]} 37. g3 {[%emt 0:00:57]} c5 {[%emt 0:03:45]} 38. d5 {[%emt 0:00:23]} g4 $2 {[%emt 0:00:53] [#]} (38... Ra8 {was worth a try.} 39. Rb7 Rf8) 39. hxg4 {[%emt 0:00:27]} (39. fxg4 c4 40. Rb5 hxg4 41. hxg4 Ne5) 39... hxg4 {[%emt 0:00:04]} 40. f4 {[%emt 0:01:29]} f5 {[%emt 0:00:19]} 41. Nc3 {[%emt 0:30:30] Weighted Error Value: White=0.05 (flawless) /Black=0.25 (precise) .  Mistake:       	---       	Black=4      Inaccurate:     	---       	Black=2      OK:         	White=20    	Black=9} ({Not} 41. exf5 Kxd5 42. Rd3+ Kc6 $18) 1-0

[Event "Reykjavik Open 2024"]
[Site "Reykjavik"]
[Date "2024.03.16"]
[Round "3.11"]
[White "Larkin, Vladyslav"]
[Black "Lu, Maximillian"]
[Result "0-1"]
[ECO "B24"]
[WhiteElo "2450"]
[BlackElo "2375"]
[Annotator "TA"]
[PlyCount "108"]
[EventDate "2024.03.12"]
[EventCountry "ISL"]
[SourceTitle "playchess.com"]
[Source "ChessBase"]
[SourceQuality "1"]
[TimeControl "40/5400+30:1800+30"]

{[%evp 9,108,-12,-6,-18,-18,-24,-16,-35,-27,-35,-33,-35,-35,-56,-40,-52,-48,-69,-64,-71,-71,-96,-89,-121,-107,-109,-108,-118,-139,-124,-108,-113,-115,-122,-122,-180,-166,-211,-153,-242,-248,-241,-235,-243,-257,-254,-258,-310,-310,-357,-371,-348,-351,-363,-360,-366,-370,-364,-361,-434,-431,-415,0,0,0,-94,-122,-105,-105,-103,-63,-69,-60,-129,-145,-148,-149,-171,-162,-156,-139,-176,-179,-177,-195,-207,-150,-210,-208,-201,-201,-294,-279,-408,-408,-6410,-6410,-8741,-6456,-29984,-29984]} 1. e4 {[%emt 0:00:03]} c5 {[%emt 0:00:05]} 2. Nc3 {[%emt 0:00:21]} d6 {[%emt 0:01:38]} 3. g3 {[%emt 0:00:32]} Nc6 {[%emt 0:00:11]} 4. Bg2 {[%emt 0:00:05]} g6 {[%emt 0:00:07]} 5. Nh3 {[%emt 0:10:21]} Bg7 {[%emt 0:00:10]} 6. O-O {[%emt 0:00:13]} e6 {[%emt 0:02:39]} 7. d3 {[%emt 0:08:24]} Rb8 {[%emt 0:03:20]} 8. Bg5 {[%emt 0:02:19] The position is equal.} Nge7 {[%emt 0:05:16]} 9. Qd2 {[%emt 0:00:17]} h6 {[%emt 0:05:42]} 10. Be3 {[%emt 0:00:15]} b5 {[%emt 0:00:38]} 11. Kh1 {[%emt 0:41:08]} a5 {[%emt 0:08:17]} 12. Rab1 {[%emt 0:02:35]} Ba6 {[%emt 0:03:02]} 13. g4 {[%emt 0:01:21]} b4 {[%emt 0:01:45]} 14. Ne2 {[%emt 0:00:20]} Ne5 {[%emt 0:00:34]} 15. g5 {[%emt 0:04:15]} hxg5 {[%emt 0:04:06]} 16. Bxg5 {[%emt 0:00:11]} f6 {[%emt 0:14:13]} 17. Be3 {[%emt 0:02:22]} Ng4 {[%emt 0:09:03] Black is more active.} 18. f3 {[%emt 0:11:34]} Nxe3 {[%emt 0:03:48]} 19. Qxe3 {[%emt 0:00:05]} Qd7 {[%emt 0:15:51]} 20. f4 {[%emt 0:01:17]} Kf7 {[%emt 0:00:24]} 21. b3 {[%emt 0:01:10]} Rh4 {[%emt 0:01:12]} 22. Neg1 {[%emt 0:01:39]} (22. Nhg1 $17 {is a better defense.}) 22... Rbh8 $19 {[%emt 0:01:10]} 23. Qg3 {[%emt 0:00:06]} Bb7 {[%emt 0:04:40]} 24. a3 {[%emt 0:00:24] [#]} (24. Nf3 $17 R4h5 25. Nf2) 24... f5 $1 {[%emt 0:04:26]} (24... bxa3 25. Ra1 $17) 25. axb4 {[%emt 0:01:30]} axb4 {[%emt 0:00:10]} (25... cxb4 26. Nf3 Rg4 27. Qf2) 26. Nf3 {[%emt 0:01:04]} Rg4 {[%emt 0:01:08]} 27. Qf2 {[%emt 0:00:30]} Kg8 {[%emt 0:01:14]} (27... fxe4 28. dxe4 (28. Nfg5+ Ke8 $11) 28... Ke8 29. Nfg5 $19) 28. Qe2 {[%emt 0:02:06]} e5 {[%emt 0:03:34]} 29. Ra1 {[%emt 0:01:51]} fxe4 {[%emt 0:02:53]} (29... exf4 $2 30. Ra7 $19) 30. dxe4 {[%emt 0:00:03] [#]} Rxg2 {[%emt 0:01:49][%mdl 512]} 31. Qxg2 {[%emt 0:00:39]} Rxh3 {[%emt 0:01:01]} (31... Qxh3 32. Qxh3 Rxh3 33. Ng5 $15) 32. Ra7 {[%emt 0:00:23][%cal Oa7b7]} Rh5 {[%emt 0:01:14]} ({And not} 32... exf4 33. Rxb7 Qxb7 34. Qxh3 Qxe4 35. Re1 $11) 33. fxe5 {[%emt 0:00:32]} dxe5 {[%emt 0:00:41]} 34. Rf2 {[%emt 0:01:08]} Qc6 {[%emt 0:00:48]} 35. Qg4 {[%emt 0:00:47]} Nc8 $2 {[%emt 0:00:37]} ({Less strong is} 35... Qxe4 36. Qxe4 Bxe4 37. Rxe7 $19) (35... Bh6 $19 36. h4 Kg7 (36... Qxe4 37. Qxe4 Bxe4 38. Rxe7 $17)) 36. Rxb7 $1 $11 {[%emt 0:00:53]} Qxb7 {[%emt 0:00:01]} 37. Qxg6 {[%emt 0:00:06]} (37. Rd2 $1 $11 Kh7 38. h4) 37... Qf7 $17 {[%emt 0:00:16]} 38. Qc6 {[%emt 0:01:03][%csl LRc5,LRc8]} Ne7 {[%emt 0:00:28]} 39. Qxc5 {[%emt 0:00:08]} Qe6 {[%emt 0:01:04]} 40. Rg2 {[%emt 0:00:33]} Qf6 {[%emt 0:00:41]} 41. Rg3 {[%emt 0:31:09] [#]} ({White should play} 41. Qxb4 $15 Ng6 (41... Qxf3 42. Qxe7 Qf7 43. Qxf7+ Kxf7 44. c3 $19) 42. Qc3) 41... Nc6 $1 {[%emt 0:05:09]} 42. Kg2 {[%emt 0:00:00]} Kh8 {[%emt 0:06:22]} 43. Qb5 {[%emt 0:00:00]} Rh6 {[%emt 0:03:43]} 44. Qb7 {[%emt 0:00:00]} Rg6 {[%emt 0:02:53]} 45. Qc8+ {[%emt 0:00:00]} Kh7 {[%emt 0:00:14]} 46. Qh3+ {[%emt 0:00:00]} Bh6 {[%emt 0:00:02]} 47. Qd7+ {[%emt 0:00:00]} Ne7 {[%emt 0:00:45]} 48. Kf2 {[%emt 0:00:00]} (48. Rxg6 $17 Qxg6+ (48... Kxg6 49. Qb5 $17) 49. Kf1) 48... Bf4 $19 {[%emt 0:00:54]} 49. Rxg6 {[%emt 0:00:00]} Kxg6 {[%emt 0:00:02]} 50. h4 {[%emt 0:00:00]} (50. Ke2 {was necessary.}) 50... Qb6+ {[%emt 0:01:13]} 51. Kg2 {[%emt 0:00:00]} (51. Kf1 $142 Qf6 52. h5+ Kxh5 53. Qd1) 51... Qe3 {[%emt 0:05:36]} 52. Qe6+ {[%emt 0:00:00]} (52. h5+ $142 Kf7 (52... Kxh5 53. Qh3+ Kg6 54. Qe6+ Kh5 55. Qh3+ Kg6 56. Qe6+ Kh5 57. Qh3+ $11) 53. Qd3 Qxd3 54. cxd3) 52... Kh5 {[%emt 0:00:08]} 53. Qf7+ {[%emt 0:00:00]} Ng6 {[%emt 0:00:26] ( -> ...Qe2+)} 54. Qh7+ {[%emt 0:00:13]} Bh6 {[%emt 0:00:02] Weighted Error Value: White=0.47/Black=0.21 (precise) .  Missed win:     	---       	Black=1      Mistake:       	White=8     	---        Inaccurate:     	White=1     	Black=1      OK:         	White=11    	Black=26     Best:        	White=2     	Black=2      Strong:       	White=1     	Black=1      Brilliant:      	---       	Black=1} 0-1

[Event "Reykjavik Open 2024"]
[Site "Reykjavik"]
[Date "2024.03.16"]
[Round "3.12"]
[White "Thorhallsson, Throstur"]
[Black "Wadsworth, Matthew J"]
[Result "1/2-1/2"]
[ECO "C13"]
[WhiteElo "2388"]
[BlackElo "2450"]
[Annotator "TA"]
[PlyCount "55"]
[EventDate "2024.03.12"]
[EventCountry "ISL"]
[SourceTitle "playchess.com"]
[Source "ChessBase"]
[SourceQuality "1"]
[TimeControl "40/5400+30:1800+30"]

{[%evp 14,55,15,25,23,31,16,19,24,27,33,4,20,0,0,-30,0,0,0,-15,-7,-9,0,-26,0,0,0,0,0,-5,-8,-14,-6,-14,0,0,0,0,0,0,0,0,-1,-1]} 1. e4 {[%emt 0:00:16]} e6 {[%emt 0:00:15]} 2. d4 {[%emt 0:00:13]} d5 {[%emt 0:00:10]} 3. Nc3 {[%emt 0:00:38]} Nf6 {[%emt 0:00:09]} 4. Bg5 {[%emt 0:01:25]} dxe4 {[%emt 0:00:10]} 5. Nxe4 {[%emt 0:00:16]} Be7 {[%emt 0:00:09]} 6. Bxf6 {[%emt 0:00:52]} gxf6 {[%emt 0:00:09][%cal Bg7f6,Bf6f5][%mdl 32]} 7. Nf3 {[%emt 0:01:31]} f5 {[%emt 0:00:47]} 8. Nc3 {[%emt 0:00:54]} a6 {[%emt 0:00:29]} 9. g3 {[%emt 0:01:39]} b5 {[%emt 0:01:44]} 10. Bg2 {[%emt 0:00:24] Strongly threatening Ne5.} Bb7 {[%emt 0:00:10]} 11. O-O {[%emt 0:00:41][%cal Od4d5]} O-O {[%emt 0:00:31]} 12. Qe2 {[%emt 0:08:07]} c5 {[%emt 0:04:48]} 13. dxc5 {[%emt 0:05:38]} b4 {[%emt 0:00:31]} 14. Nd1 {[%emt 0:05:55]} Bxc5 {[%emt 0:12:49]} 15. Ne3 {[%emt 0:11:24]} Nc6 {[%emt 0:13:57][%cal Bb8c6,Bc6d4,Bd4c2][%mdl 32]} 16. Rad1 {[%emt 0:06:47]} Qe7 {[%emt 0:03:32]} 17. Nc4 {[%emt 0:04:51]} Rad8 {[%emt 0:03:57]} 18. b3 {[%emt 0:06:45]} Bd4 {[%emt 0:10:56]} 19. Nxd4 {[%emt 0:12:30] The position is equal.} Nxd4 {[%emt 0:00:21]} 20. Qe3 {[%emt 0:01:17]} Bxg2 {[%emt 0:03:16]} (20... Nxc2 $2 {perishes.} 21. Qa7 $18) 21. Kxg2 {[%emt 0:00:17]} Nxc2 {[%emt 0:01:22]} 22. Qb6 {[%emt 0:03:19]} Rd5 {[%emt 0:09:23]} 23. Qxa6 {[%emt 0:08:23]} Rfd8 {[%emt 0:09:15]} 24. Rxd5 {[%emt 0:02:18]} exd5 {[%emt 0:00:44]} 25. Ne3 {[%emt 0:06:25]} Qe4+ {[%emt 0:04:16]} 26. Kh3 {[%emt 0:00:06] [#] Qf6 is the strong threat.} Nxe3 {[%emt 0:13:45]} 27. fxe3 {[%emt 0:00:03]} Qe6 {[%emt 0:01:46]} (27... Qxe3 28. Rxf5 Qe6 29. Qxe6 fxe6 30. Rf6 $15) 28. Qxe6 {[%emt 0:03:28] An uneventful encounter.   Weighted Error Value: White=0.07 (flawless) /Black=0.07 (flawless) .  Inaccurate:     	White=3     	Black=1      OK:         	White=10    	Black=8      Best:        	White=2     	Black=1} 1/2-1/2

[Event "Reykjavik Open 2024"]
[Site "Reykjavik"]
[Date "2024.03.16"]
[Round "3.13"]
[White "Mammadzada, Gunay"]
[Black "Dauner, Benedikt"]
[Result "1/2-1/2"]
[ECO "E07"]
[WhiteElo "2449"]
[BlackElo "2366"]
[Annotator "TA"]
[PlyCount "55"]
[EventDate "2024.03.12"]
[EventCountry "ISL"]
[SourceTitle "playchess.com"]
[Source "ChessBase"]
[SourceQuality "1"]
[TimeControl "40/5400+30:1800+30"]

{[%evp 11,55,12,35,11,10,14,10,15,6,2,27,29,23,0,37,27,23,31,36,10,3,9,27,-1,112,0,0,0,0,0,0,0,0,0,-7,0,0,0,0,0,0,0,0,0,0,0]} 1. Nf3 {[%emt 0:00:30]} d5 {[%emt 0:00:25]} 2. d4 {[%emt 0:00:20]} Nf6 {[%emt 0:00:31]} 3. c4 {[%emt 0:00:21]} e6 {[%emt 0:00:00]} 4. g3 {[%emt 0:00:06]} Be7 {[%emt 0:00:36]} 5. Bg2 {[%emt 0:00:06]} O-O {[%emt 0:00:07]} 6. O-O {[%emt 0:00:07]} Nbd7 {[%emt 0:00:13]} 7. Qd3 {[%emt 0:00:29]} b6 {[%emt 0:05:04]} 8. cxd5 {[%emt 0:13:54]} exd5 {[%emt 0:00:17]} 9. Nc3 {[%emt 0:00:53]} Bb7 {[%emt 0:01:13]} 10. Nh4 {[%emt 0:10:18]} Re8 {[%emt 0:05:40]} 11. Nf5 {[%emt 0:01:21]} Bf8 {[%emt 0:00:21]} 12. Bg5 {[%emt 0:04:08][%cal Oc3d5]} Qc8 {[%emt 0:11:25]} 13. Rac1 {[%emt 0:02:56]} Ne4 {[%emt 0:13:57]} 14. Bf4 {[%emt 0:12:08]} c5 {[%emt 0:12:49]} 15. Nxe4 {[%emt 0:14:10]} dxe4 {[%emt 0:00:06]} 16. Qb3 {[%emt 0:10:45]} Qc6 {[%emt 0:06:01]} 17. Rfd1 {[%emt 0:00:00]} Qf6 {[%emt 0:03:00]} (17... Qg6 $11 18. Bh3 Bc8) 18. Ne3 {[%emt 0:01:44] White has more active pieces.} (18. Bh3 $16) 18... cxd4 $11 {[%emt 0:18:57] [#] Hoping for ...Nc5. The position is equal.} 19. Nd5 {[%emt 0:00:17]} Qf5 {[%emt 0:08:26]} ({Reject} 19... Bxd5 20. Qxd5 Nc5 21. Qxd4 $14 (21. Rxd4 $2 {too greedy.} Rad8 $19)) 20. Rxd4 {[%emt 0:08:12] Black must now prevent Ne3.} Nc5 {[%emt 0:00:18]} 21. Qd1 {[%emt 0:00:17]} Rad8 {[%emt 0:02:25]} 22. Nc7 {[%emt 0:01:59]} Rxd4 {[%emt 0:01:00]} 23. Qxd4 {[%emt 0:00:04]} Rc8 {[%emt 0:03:52]} 24. h4 {[%emt 0:03:13]} Ne6 {[%emt 0:00:00]} 25. Nxe6 {[%emt 0:03:01] [#] Threatens to win with Rxc8.} Rxc1+ {[%emt 0:00:00]} 26. Bxc1 {[%emt 0:00:03]} Qxe6 {[%emt 0:00:00]} 27. b3 {[%emt 0:04:01]} Qd5 {[%emt 0:00:00]} 28. Bb2 {[%emt 0:01:39] Weighted Error Value: White=0.15 (very precise) /Black=0.13 (very precise) .  Mistake:       	White=1     	Black=1      Inaccurate:     	White=2     	Black=1      OK:         	White=11    	Black=13     Best:        	White=1     	Black=1} 1/2-1/2

[Event "Reykjavik Open 2024"]
[Site "Reykjavik"]
[Date "2024.03.16"]
[Round "3.14"]
[White "Sidhant, Mohapatra"]
[Black "Chasin, Nico"]
[Result "1/2-1/2"]
[ECO "B30"]
[WhiteElo "2379"]
[BlackElo "2447"]
[Annotator "TA"]
[PlyCount "40"]
[EventDate "2024.03.12"]
[EventCountry "ISL"]
[SourceTitle "playchess.com"]
[Source "ChessBase"]
[SourceQuality "1"]
[TimeControl "40/5400+30:1800+30"]

{[%evp 9,40,3,18,0,12,0,0,-2,10,-6,-16,-30,-31,-46,-45,-54,-66,-71,-73,-75,0,0,95,50,58,62,57,52,55,63,58,60,60]} 1. e4 {[%emt 0:04:19]} c5 {[%emt 0:04:17]} 2. Nf3 {[%emt 0:00:00]} Nc6 {[%emt 0:00:35]} 3. Bb5 {[%emt 0:00:00]} e6 {[%emt 0:00:08]} 4. Bxc6 {[%emt 0:00:47]} bxc6 {[%emt 0:00:19]} 5. d3 {[%emt 0:01:22]} Qc7 {[%emt 0:00:21]} 6. Nbd2 {[%emt 0:02:04]} Ne7 {[%emt 0:00:13]} 7. O-O {[%emt 0:01:23]} Ng6 {[%emt 0:00:59]} 8. Re1 {[%emt 0:00:29] The position is equal.} f6 {[%emt 0:01:44]} 9. a3 {[%emt 0:01:27]} Be7 {[%emt 0:01:03]} 10. c3 {[%emt 0:04:14]} a5 {[%emt 0:05:10]} 11. a4 {[%emt 0:04:46]} O-O {[%emt 0:00:43]} 12. b3 {[%emt 0:00:49]} e5 {[%emt 0:02:46]} 13. Nc4 {[%emt 0:01:49]} d5 {[%emt 0:04:23]} 14. Ne3 {[%emt 0:00:05]} f5 {[%emt 0:00:17]} (14... Rd8 $17 {Strongly threatening ...dxe4.} 15. Bd2 Be6) 15. exd5 $11 {[%emt 0:04:14]} Bb7 {[%emt 0:01:14] [#]} (15... Rd8 $1 $11) 16. d6 $1 {[%emt 0:01:43]} Bxd6 {[%emt 0:01:49] White is slightly better.} 17. Nc4 {[%emt 0:00:05]} Ba6 {[%emt 0:01:16]} 18. Nxd6 {[%emt 0:03:18]} Qxd6 {[%emt 0:00:02] [#]} 19. Nxe5 $1 {[%emt 0:00:07]} Nxe5 {[%emt 0:00:11]} 20. Bf4 {[%emt 0:00:03]} Qxd3 {[%emt 0:00:30] Weighted Error Value: White=0.09 (flawless) /Black=0.19 (very precise) .  Mistake:       	---       	Black=2      Inaccurate:     	White=1     	---        OK:         	White=3     	Black=5      Best:        	White=3     	---} 1/2-1/2